bitfinex-derivatives/quotes_SOLF0:USTF0_20240902
["timestamp","ask_amount","ask_price","bid_price","bid_amount"]
[1725313890614,0.05408393,133.94,133.92,3.7857088]
[1725313900514,0.05408393,133.94,133.92,0.0520088]
[1725313901916,0.05408393,133.94,133.92,3.7857088]
[1725313906723,0.05408393,133.94,133.92,0.0520088]
[1725313910318,0.05408393,133.94,133.92,3.7856088]
[1725313919735,0.05408393,133.94,133.92,0.0520088]
[1725313931952,0.05408393,133.94,133.92,3.7857088]
[1725313945560,0.05408393,133.94,133.93,3.7334]
[1725313945866,2.7994,134.02,133.92,131.50770231]
[1725313946057,2.7994,134.02,133.96,11.4]
[1725313946058,6.48631687,134.02,133.96,11.4]
[1725313946263,1.4527,134.02,133.97,11.4]
[1725313946458,1.4527,134.02,133.93,2.7728]
[1725313946654,3.7303,134.05,134.0,3.7314]
[1725313946856,3.7303,134.05,133.93,2.7728]
[1725313946857,0.05685065,134.04,134.01,0.05565037]
[1725313947063,0.05523339,134.04,134.01,0.05065786]
[1725313947258,0.05523339,134.04,134.02,3.7308]
[1725313948161,0.05523339,134.04,134.03,3.7306]
[1725313958064,4.2211,134.12,134.03,11.4]
[1725313958363,4.2211,134.12,134.01,5.21346357]
[1725313958364,3.7283,134.12,134.07,11.4]
[1725313958566,3.7283,134.12,134.08,3.76286737]
[1725313958968,0.05286711,134.11,134.09,0.0537941]
[1725313959486,11.4,134.19,134.12,11.4]
[1725313959764,17.9009,134.21,134.15,3.7271]
[1725313959964,8.92333971,134.21,134.15,15.1271]
[1725313960159,8.92333971,134.21,134.16,3.7269]
[1725313960360,0.050247,134.2,134.17,0.05115783]
[1725313960762,0.050247,134.2,134.17,3.77785783]
[1725313960963,0.050247,134.2,134.17,0.05115783]
[1725313963371,0.050247,134.2,134.17,3.77765783]
[1725313964274,0.050247,134.2,134.18,3.7265]
[1725313971579,3.776347,134.2,134.17,0.05115783]
[1725313971880,0.050247,134.2,134.17,0.05115783]
[1725313972583,0.050247,134.2,134.19,11.4]
[1725313974279,16.5779,134.28,134.23,3.7249]
[1725313974990,20.29922002,134.28,134.23,3.7249]
[1725313975178,20.29922002,134.28,134.24,3.7248]
[1725313975485,0.05085382,134.26,134.24,3.7248]
[1725313977986,0.05085382,134.26,134.25,3.7245]
[1725313988590,0.05085382,134.26,134.25,15.1245]
[1725314002014,0.05085382,134.26,134.25,3.7245]
[1725314004017,0.05085382,134.26,134.24,3.7246]
[1725314006513,0.05085382,134.26,134.24,15.1246]
[1725314010520,0.05085382,134.26,134.24,3.7246]
[1725314012110,0.05085382,134.26,134.23,0.04890718]
[1725314012111,3.77525382,134.26,134.23,0.04890718]
[1725314012311,1.50415382,134.26,134.23,0.04890718]
[1725314013211,5.22855382,134.26,134.23,0.04890718]
[1725314014123,5.22855382,134.26,134.13,7.4557]
[1725314014124,1.50415382,134.26,134.13,7.4557]
[1725314014328,5.06759684,134.25,134.21,11.4]
[1725314014623,3.725,134.24,134.21,11.4]
[1725314014830,3.725,134.24,134.2,3.7258]
[1725314015128,0.05514526,134.23,134.21,11.45560716]
[1725314022120,0.05514526,134.23,134.21,0.05560716]
[1725314022525,11.4,134.22,134.04,3.37594297]
[1725314022728,11.4,134.19,134.08,1.4113]
[1725314023033,11.4,134.16,134.1,11.4]
[1725314023228,1.4378,134.15,134.05,1.3446]
[1725314023425,12.7961,134.14,134.08,11.4]
[1725314023735,3.7789644,134.11,134.09,0.0496498]
[1725314024331,3.7287,134.1,134.09,0.0496498]
[1725314025736,0.0503644,134.11,134.05,11.4]
[1725314025737,11.4503644,134.11,134.05,11.4]
[1725314026131,3.7294,134.08,134.05,11.4]
[1725314026529,3.78153037,134.08,134.05,11.4484934]
[1725314026736,3.78153037,134.08,134.05,0.0484934]
[1725314028340,1.45003037,134.08,134.05,0.0484934]
[1725314028841,3.7298,134.06,134.05,0.0484934]
[1725314029629,3.7304,134.04,134.02,11.4]
[1725314030045,3.7304,134.04,134.0,15.1314]
[1725314030628,0.05468232,134.03,134.01,0.05389182]
[1725314031435,7.52976601,134.02,134.01,0.05389182]
[1725314031642,3.7309,134.02,134.01,0.05389182]
[1725314031835,7.42494655,134.02,134.01,0.05389182]
[1725314034537,3.7324,133.97,133.9,2.8242]
[1725314034844,1.3706,134.01,133.96,11.4]
[1725314035035,1.3706,134.01,133.92,45.6]
[1725314035036,1.3706,134.01,133.97,11.4]
[1725314035429,3.78146008,134.0,133.98,0.04715902]
[1725314035631,3.78146008,134.0,133.98,11.44715902]
[1725314036046,0.04996008,134.0,133.98,11.44715902]
[1725314037654,0.04996008,134.0,133.98,0.04715902]
[1725314037849,3.78146008,134.0,133.98,0.04715902]
[1725314040740,3.7318,133.99,133.98,0.04715902]
[1725314041049,0.04996008,134.0,133.98,0.04715902]
[1725314041744,3.78146008,134.0,133.98,0.04715902]
[1725314044549,0.04996008,134.0,133.98,0.04715902]
[1725314044750,0.04996008,134.0,133.98,11.44715902]
[1725314045448,0.04996008,134.0,133.98,0.04715902]
[1725314046150,3.78166008,134.0,133.98,0.04715902]
[1725314047059,11.44996008,134.0,133.98,0.04715902]
[1725314047251,15.16558287,134.0,133.9,14.2242]
[1725314047452,3.7329,133.95,133.9,5.1616]
[1725314047752,3.7329,133.95,133.9,8.9706441]
[1725314048149,3.7332,133.94,133.9,8.9706441]
[1725314048352,0.05266719,133.93,133.91,0.05602597]
[1725314049849,0.05266719,133.93,133.91,11.45602597]
[1725314050952,0.05266719,133.93,133.92,11.4]
[1725314052453,0.05266719,133.93,133.92,15.1337]
[1725314052849,3.7327,133.96,133.92,15.1337]
[1725314053155,3.7323,133.97,133.93,15.1332]
[1725314053658,3.7323,133.97,133.91,0.05602597]
[1725314053659,11.4,134.02,133.95,11.4]
[1725314053954,3.7319,133.99,133.97,0.04929301]
[1725314054458,3.732,133.98,133.97,0.04929301]
[1725314054959,0.05034663,134.0,133.97,0.04929301]
[1725314055258,3.7319,133.99,133.97,0.04929301]
[1725314055961,0.05034663,134.0,133.98,11.4]
[1725314056547,3.7305,134.04,133.99,3.7316]
[1725314056752,3.7305,134.04,133.98,11.4]
[1725314057357,3.7305,134.04,134.0,3.7313]
[1725314057751,0.05321012,134.03,134.01,0.04908636]
[1725314058848,0.05321012,134.03,134.01,3.78028636]
[1725314059067,0.05321012,134.03,134.01,0.04908636]
[1725314059454,0.05321012,134.03,134.01,3.78018636]
[1725314059755,0.05321012,134.03,134.01,0.04908636]
[1725314060558,3.7309,134.02,134.01,0.04908636]
[1725314062457,3.78391012,134.03,134.01,0.04908636]
[1725314071367,3.7309,134.02,134.01,0.04908636]
[1725314074967,3.78401012,134.03,134.01,0.04908636]
[1725314075665,3.7309,134.02,134.01,0.04908636]
[1725314080078,3.7309,134.02,134.01,0.04908636]
[1725314082888,15.1909,134.02,134.01,0.04908636]
[1725314083491,3.7309,134.02,134.01,0.04908636]
[1725314101204,3.7313,134.01,133.98,3.732]
[1725314102206,3.7313,134.01,133.98,3.78648449]
[1725314103305,3.79047903,134.02,133.98,3.78648449]
[1725314104398,3.7313,134.01,133.98,3.78648449]
[1725314109812,7.52157903,134.02,133.98,3.78628449]
[1725314110002,3.7311,134.02,133.98,3.78628449]
[1725314110899,3.7311,134.02,133.99,3.7317]
[1725314115217,3.78401012,134.03,134.0,3.7315]
[1725314115615,3.78401012,134.03,133.98,0.05448449]
[1725314115616,0.05321012,134.03,133.99,12.8383]
[1725314115815,0.05321012,134.03,134.0,1.4072]
[1725314117314,0.05321012,134.03,134.02,3.7309]
[1725314122718,0.05321012,134.03,134.01,3.78498963]
[1725314136238,0.05321012,134.03,134.02,3.7309]
[1725314141546,3.7292,134.09,134.05,3.7298]
[1725314141846,16.51059649,134.1,134.05,3.66429776]
[1725314142040,16.5322,134.1,134.03,11.46]
[1725314142244,16.5322,134.1,134.06,3.7296]
[1725314142441,20.30318504,134.1,134.06,3.7296]
[1725314142645,0.05220527,134.09,134.07,0.05031817]
[1725314156453,0.05220527,134.09,134.07,3.77981817]
[1725314163757,0.05220527,134.09,134.08,3.7293]
[1725314190370,0.05220527,134.09,134.08,15.1893]
[1725314192079,12.7841,134.17,134.12,3.728]
[1725314192372,5.01035111,134.17,134.12,15.188]
[1725314192578,3.7272,134.16,134.12,15.188]
[1725314193279,0.05642442,134.15,134.13,0.0488639]
[1725314193481,0.05642442,134.15,134.13,3.7766639]
[1725314194274,0.05642442,134.15,134.14,3.7276]
[1725314198679,87.41407354,134.21,134.17,3.7267]
[1725314198984,87.41407354,134.21,134.17,11.46]
[1725314199283,3.7259,134.2,134.17,15.1867]
[1725314199478,87.41407354,134.21,134.17,15.1867]
[1725314199677,0.05082416,134.2,134.18,0.05491022]
[1725314200071,0.05082416,134.2,134.18,3.78141022]
[1725314204085,3.77682416,134.2,134.18,0.05491022]
[1725314204280,0.05082416,134.2,134.18,0.05491022]
[1725314204880,3.7262,134.19,134.18,0.05491022]
[1725314222200,3.7262,134.19,134.1,1.4332]
[1725314222201,3.7272,134.16,134.1,1.4332]
[1725314222395,3.7272,134.16,134.12,11.46]
[1725314222900,3.7272,134.16,134.13,3.7277]
[1725314223199,3.78178299,134.16,134.13,3.78260275]
[1725314223414,3.7273,134.15,134.13,0.05490275]
[1725314224101,3.7276,134.14,134.13,0.05490275]
[1725314226699,10.2825,134.17,133.94,35.43040177]
[1725314227002,11.46,133.97,133.83,4.70378108]
[1725314227210,11.46,133.95,133.84,1.37114176]
[1725314227507,11.46,133.95,133.87,11.46]
[1725314227807,0.05006339,133.92,133.9,11.50811094]
[1725314228301,0.05006339,133.92,133.9,0.04811094]
[1725314230105,0.05006339,133.92,133.91,11.46]
[1725314237596,7.9661,133.99,133.91,11.46]
[1725314237798,7.461,134.12,133.94,11.46]
[1725314237799,1.3713,134.05,133.94,11.46]
[1725314238004,11.46,134.01,133.94,11.46]
[1725314238199,3.7315,134.0,133.94,18.91930735]
[1725314238502,11.46,134.02,133.96,11.46]
[1725314238806,0.05208335,134.0,133.98,0.04722614]
[1725314240409,3.78358335,134.0,133.98,0.04722614]
[1725314240719,0.05208335,134.0,133.98,0.04722614]
[1725314243718,3.78368335,134.0,133.98,0.04722614]
[1725314244107,3.78368335,134.0,133.99,11.46]
[1725314244108,0.05208335,134.0,133.99,11.46]
[1725314244909,0.05208335,134.0,133.99,15.1918]
[1725314245621,0.05208335,134.0,133.99,3.7318]
[1725314245914,0.05208335,134.0,133.99,15.1918]
[1725314248419,3.7304,134.04,134.0,3.7314]
[1725314248709,1.4285,134.05,134.0,15.1914]
[1725314249503,0.04945618,134.04,134.01,0.04835985]
[1725314250410,3.77985618,134.04,134.01,0.04835985]
[1725314250717,0.04945618,134.04,134.02,3.7308]
[1725314253111,3.75485439,134.14,134.03,11.46]
[1725314253317,11.46,134.11,134.06,11.46]
[1725314253510,15.1889,134.1,134.05,3.7301]
[1725314254116,0.0543165,134.09,134.06,0.05441912]
[1725314260625,0.0543165,134.09,134.06,11.51441912]
[1725314261323,0.0543165,134.09,134.07,11.46]
[1725314261717,0.0543165,134.09,134.08,11.46]
[1725314262525,3.7278,134.14,134.08,11.46]
[1725314262728,2.8555,134.18,134.1,11.46]
[1725314262729,11.46,134.16,134.1,11.46]
[1725314263117,4.2525,134.18,134.1,11.46]
[1725314263323,11.46,134.16,134.1,15.21456646]
[1725314263533,11.46,134.16,134.12,0.05189202]
[1725314263534,0.04947028,134.14,134.12,0.05189202]
[1725314272833,3.77717028,134.14,134.12,0.05189202]
[1725314273729,0.04947028,134.14,134.12,0.05189202]
[1725314276333,3.77717028,134.14,134.12,0.05189202]
[1725314276934,0.04947028,134.14,134.12,0.05189202]
[1725314279132,3.77707028,134.14,134.12,0.05189202]
[1725314280634,3.7279,134.13,134.12,0.05189202]
[1725314280830,5.1324,134.13,134.12,0.05189202]
[1725314282535,5.1324,134.13,134.09,3.7289]
[1725314282736,5.1324,134.13,134.09,15.1889]
[1725314283135,1.4045,134.13,134.1,3.7286]
[1725314283543,1.4045,134.13,134.1,3.77693909]
[1725314284143,1.4045,134.13,134.1,7.59244412]
[1725314284840,0.04947028,134.14,134.1,3.86384412]
[1725314285138,0.04947028,134.14,134.12,11.46]
[1725314285333,0.04947028,134.14,134.12,15.1879]
[1725314285536,0.04947028,134.14,134.12,11.46]
[1725314286448,0.04947028,134.14,134.13,3.7279]
[1725314289748,1.3892,134.21,134.13,45.84]
[1725314290055,17.94942089,134.24,134.17,11.46]
[1725314290950,0.04712971,134.22,134.19,0.05388233]
[1725314293354,0.04712971,134.22,134.19,3.77988233]
[1725314295754,0.04712971,134.22,134.19,0.05388233]
[1725314297754,0.04712971,134.22,134.2,3.7259]
[1725314298250,0.04712971,134.22,134.19,3.77998233]
[1725314299852,0.04712971,134.22,134.2,11.46]
[1725314300448,0.04712971,134.22,134.2,15.1857]
[1725314303149,0.04712971,134.22,134.2,15.1858]
[1725314303452,0.04712971,134.22,134.2,11.46]
[1725314303858,0.04712971,134.22,134.21,3.7256]
[1725314304854,1.4518,134.29,134.2,57.3]
[1725314305054,1.4518,134.29,134.26,11.46]
[1725314305354,3.7231,134.31,134.26,11.46]
[1725314305860,0.0529245,134.3,134.27,0.04811819]
[1725314306959,0.0529245,134.3,134.28,11.46]
[1725314307750,0.0529245,134.3,134.27,0.04811819]
[1725314307955,0.0529245,134.3,134.27,11.50811819]
[1725314308258,0.0529245,134.3,134.29,11.46]
[1725314310764,0.0529245,134.3,134.29,11.46]
[1725314311451,0.0529245,134.3,134.29,15.1834]
[1725314312661,15.13378355,134.37,134.29,15.1834]
[1725314312662,3.67378355,134.37,134.32,3.7226]
[1725314312855,11.46,134.38,134.32,15.1826]
[1725314313366,7.37051473,134.37,134.32,15.1826]
[1725314313557,0.05028736,134.36,134.34,0.05717697]
[1725314314058,3.77198736,134.36,134.34,0.05717697]
[1725314315261,3.7218,134.35,134.34,0.05717697]
[1725314315460,0.05028736,134.36,134.34,0.05717697]
[1725314315964,3.77198736,134.36,134.34,0.05717697]
[1725314319469,11.46,134.35,134.26,3.63277467]
[1725314319676,14.2331,134.34,134.28,11.46]
[1725314319874,14.2331,134.34,134.28,15.25271269]
[1725314320169,17.9553,134.34,134.3,3.723]
[1725314320558,0.04725819,134.33,134.31,0.05143383]
[1725314321465,3.76965819,134.33,134.31,0.05143383]
[1725314323768,0.04725819,134.33,134.31,0.05143383]
[1725314324666,3.76965819,134.33,134.31,0.05143383]
[1725314326473,11.50725819,134.33,134.28,15.1835]
[1725314327066,3.7228,134.32,134.28,15.1835]
[1725314327469,3.7228,134.32,134.29,0.04801888]
[1725314327671,3.7229,134.31,134.29,0.04801888]
[1725314327969,0.04725819,134.33,134.29,0.04801888]
[1725314328174,3.7231,134.3,134.29,0.04801888]
[1725314328575,3.64102512,134.3,134.25,11.46]
[1725314328775,1.381,134.29,134.23,11.46]
[1725314328970,11.46,134.27,134.22,3.7254]
[1725314329168,11.46,134.26,134.2,11.46]
[1725314329369,15.1843,134.26,134.2,11.46]
[1725314329570,0.05133295,134.24,134.22,0.04779755]
[1725314332378,3.77613295,134.24,134.22,0.04779755]
[1725314334266,5.12913295,134.24,134.22,0.04779755]
[1725314338382,5.12913295,134.24,134.18,3.6387251]
[1725314338383,3.7254,134.22,134.19,3.726]
[1725314339580,3.7252,134.23,134.19,3.78263571]
[1725314339972,5.12943295,134.24,134.21,11.46]
[1725314340169,1.40433295,134.24,134.23,11.46]
[1725314340478,0.05133295,134.24,134.23,11.46]
[1725314340874,0.05133295,134.24,134.23,15.1851]
[1725314341271,0.05133295,134.24,134.22,0.04865075]
[1725314345787,0.05133295,134.24,134.22,3.77405075]
[1725314347078,0.05133295,134.24,134.22,0.04865075]
[1725314352878,11.51133295,134.24,134.22,0.04865075]
[1725314353083,12.92923295,134.24,134.22,0.04865075]
[1725314353286,15.19668528,134.23,134.22,0.04865075]
[1725314353481,18.92178528,134.23,134.19,3.726]
[1725314353684,11.46,134.21,134.15,11.46]
[1725314353991,1.4179,134.24,134.18,3.7263]
[1725314354287,1.4179,134.24,134.15,15.19296089]
[1725314354288,11.46,134.21,134.15,15.19296089]
[1725314354486,0.0508317,134.19,134.17,3.78246301]
[1725314357901,0.0508317,134.19,134.17,0.05586301]
[1725314358291,11.5108317,134.19,134.17,0.05586301]
[1725314359101,3.7265,134.18,134.17,0.05586301]
[1725314360998,16.6138317,134.19,134.17,0.05586301]
[1725314363201,5.1538317,134.19,134.17,0.05586301]
[1725314363400,16.6138317,134.19,134.17,0.05586301]
[1725314364097,3.7265,134.18,134.17,0.05586301]
[1725314367599,11.46,134.18,134.03,3.71955307]
[1725314367819,11.46,134.15,134.08,11.46]
[1725314368099,11.46,134.15,134.09,3.73984648]
[1725314368505,11.46,134.15,134.08,11.46]
[1725314368707,0.05208139,134.13,134.1,0.05697346]
[1725314368910,0.05208139,134.13,134.11,7.52135203]
[1725314371509,0.05208139,134.13,134.1,3.78547346]
[1725314376912,0.05208139,134.13,134.1,0.05697346]
[1725314377108,3.77998139,134.13,134.1,0.05697346]
[1725314377313,0.05208139,134.13,134.1,0.05697346]
[1725314377914,3.78008139,134.13,134.1,0.05697346]
[1725314388325,3.78008139,134.13,134.1,3.78567346]
[1725314394620,1.3767,134.19,134.11,11.46]
[1725314394921,15.14840849,134.18,134.11,12.8818]
[1725314395724,0.05676791,134.16,134.13,3.78275693]
[1725314398626,0.05676791,134.16,134.14,3.7276]
[1725314400322,0.05676791,134.16,134.13,0.05505693]
[1725314400323,0.05676791,134.16,134.15,3.7273]
[1725314400521,15.12725696,134.23,134.17,11.46]
[1725314400825,11.46,134.2,134.18,3.7262]
[1725314401321,3.7257,134.21,134.16,3.66514555]
[1725314401322,11.46,134.21,134.16,3.66514555]
[1725314401521,0.05208533,134.2,134.16,11.46]
[1725314401722,0.05208533,134.2,134.17,11.51529398]
[1725314401929,3.66141967,134.26,134.17,11.51529398]
[1725314401930,3.66141967,134.26,134.18,11.46]
[1725314402122,11.46,134.25,134.18,11.46]
[1725314402518,7.38571967,134.26,134.21,3.7256]
[1725314402722,1.45,134.3,134.22,11.46]
[1725314403025,0.05049431,134.25,134.22,11.51280721]
[1725314403225,0.05049431,134.25,134.22,0.05280721]
[1725314403733,0.05049431,134.25,134.22,3.77810721]
[1725314404128,11.46,134.24,134.22,0.05280721]
[1725314404521,11.46,134.23,134.22,0.05280721]
[1725314404826,0.05049431,134.25,134.22,0.05280721]
[1725314405028,11.46,134.24,134.22,0.05280721]
[1725314406417,0.05049431,134.25,134.22,0.05280721]
[1725314406620,11.51049431,134.25,134.22,0.05280721]
[1725314406829,0.05049431,134.25,134.22,0.05280721]
[1725314407129,11.51049431,134.25,134.22,0.05280721]
[1725314408828,11.46,134.24,134.22,0.05280721]
[1725314409430,11.46,134.23,134.22,0.05280721]
[1725314410132,11.46,134.23,134.17,3.76703656]
[1725314410133,11.46,134.23,134.17,3.7267]
[1725314410326,11.46,134.2,134.14,11.46]
[1725314410724,11.46,134.2,134.16,3.7269]
[1725314410924,11.46,134.2,134.13,11.46]
[1725314411231,0.04804684,134.18,134.15,0.05551161]
[1725314412042,0.04804684,134.18,134.16,3.7268]
[1725314413639,0.04804684,134.18,134.17,3.7268]
[1725314414627,0.04804684,134.18,134.15,0.05551161]
[1725314415230,0.04804684,134.18,134.16,3.7268]
[1725314417435,0.04804684,134.18,134.15,0.05551161]
[1725314419937,28.66804684,134.18,134.15,0.05551161]
[1725314420235,3.727,134.16,134.15,0.05551161]
[1725314420425,32.347,134.16,134.15,0.05551161]
[1725314420627,28.62,134.16,134.09,1.3984]
[1725314420939,1.3467,134.18,134.09,3.7288]
[1725314420940,28.62,134.14,134.09,3.7288]
[1725314421431,7.48471677,134.13,134.09,3.7288]
[1725314421734,0.04820637,134.12,134.1,0.05471446]
[1725314421940,3.77650637,134.12,134.1,0.04711044]
[1725314422434,0.04820637,134.12,134.1,0.04711044]
[1725314423436,0.04820637,134.12,134.11,3.7284]
[1725314425842,0.04820637,134.12,134.1,3.77571044]
[1725314427436,0.04820637,134.12,134.11,3.7284]
[1725314428339,1.3826,134.17,134.14,3.7275]
[1725314429043,28.62,134.22,134.13,28.62]
[1725314429237,0.05178727,134.19,134.16,0.04734705]
[1725314429537,0.05178727,134.19,134.16,3.77424705]
[1725314431332,28.67178727,134.19,134.16,0.04734705]
[1725314431543,30.06358727,134.19,134.16,0.04734705]
[1725314431735,3.7268,134.17,134.16,0.04734705]
[1725314433838,32.3468,134.17,134.16,0.04734705]
[1725314434045,32.3468,134.17,134.1,2.8936]
[1725314434046,28.62,134.17,134.1,1.4443]
[1725314434339,1.3918,134.19,134.07,28.62]
[1725314434340,28.62,134.15,134.07,28.62]
[1725314434541,28.62,134.15,134.1,3.7285]
[1725314435045,3.77519604,134.14,134.11,0.05429099]
[1725314437043,3.728,134.13,134.11,0.05429099]
[1725314437640,7.48946444,134.13,134.11,0.05429099]
[1725314439132,8.88586444,134.13,134.11,0.05429099]
[1725314439341,1.3964,134.13,134.11,0.05429099]
[1725314440247,5.12720393,134.13,134.11,0.05429099]
[1725314441740,8.85510393,134.13,134.11,0.05429099]
[1725314442147,5.12720393,134.13,134.11,0.05429099]
[1725314442346,3.7281,134.12,134.11,0.05429099]
[1725314443036,8.85520393,134.13,134.11,0.05429099]
[1725314444547,3.7281,134.12,134.11,0.05429099]
[1725314444848,5.12720393,134.13,134.11,0.05429099]
[1725314445040,8.85520393,134.13,134.11,0.05429099]
[1725314448855,3.7281,134.12,134.11,0.05429099]
[1725314449950,15.1781,134.12,134.11,0.05429099]
[1725314450546,3.7285,134.11,134.03,11.45]
[1725314450753,11.45,134.09,134.03,11.45]
[1725314450950,11.45,134.09,134.06,3.7296]
[1725314451147,11.45,134.09,134.05,3.68028631]
[1725314451344,11.45,134.09,134.03,11.45]
[1725314451544,0.05015007,134.07,134.06,3.7298]
[1725314452850,0.05015007,134.07,134.06,15.1798]
[1725314453052,16.50719404,134.13,134.06,11.45]
[1725314453254,2.8402,134.17,134.09,11.45]
[1725314453447,12.8592,134.16,134.11,3.7283]
[1725314453958,0.04874313,134.15,134.12,0.0484223]
[1725314456353,0.04874313,134.15,134.12,3.7765223]
[1725314456958,3.7278,134.14,134.12,0.0484223]
[1725314457152,0.04874313,134.15,134.12,0.0484223]
[1725314458154,0.04874313,134.15,134.12,3.7765223]
[1725314459252,3.7276,134.14,134.12,0.0484223]
[1725314460060,32.41614313,134.15,134.12,0.0484223]
[1725314460455,28.64,134.13,134.12,0.0484223]
[1725314460656,32.3679,134.13,134.12,0.0484223]
[1725314460961,36.15144766,134.13,134.12,0.0484223]
[1725314465363,3.7285,134.11,134.08,3.7291]
[1725314465662,32.3685,134.11,134.08,3.7291]
[1725314465862,3.78354766,134.13,134.06,3.7298]
[1725314466065,28.64,134.09,134.02,68.44383776]
[1725314466269,28.64,134.09,134.04,0.04782347]
[1725314466270,0.05617032,134.07,134.04,0.04782347]
[1725314467351,0.05617032,134.07,134.05,3.7299]
[1725314467552,0.05617032,134.07,134.04,0.04782347]
[1725314467754,0.05617032,134.07,134.04,1.40152347]
[1725314468367,0.05617032,134.07,134.06,3.7298]
[1725314472876,33.75514826,134.13,134.04,29.9937]
[1725314473369,3.7277,134.14,134.1,3.7285]
[1725314473570,28.64,134.15,134.04,29.9937]
[1725314473771,28.64,134.15,134.08,0.05433736]
[1725314473976,0.05182897,134.13,134.08,0.05433736]
[1725314474272,0.05182897,134.13,134.12,3.7281]
[1725314476678,0.05182897,134.13,134.11,3.78535657]
[1725314476974,0.05182897,134.13,134.11,0.05705657]
[1725314478376,0.05182897,134.13,134.12,3.7281]
[1725314480181,0.05182897,134.13,134.11,0.05705657]
[1725314481377,0.05182897,134.13,134.12,3.7281]
[1725314482574,0.05182897,134.13,134.12,6.01548873]
[1725314487979,0.05182897,134.13,134.12,2.28738873]
[1725314488371,0.05182897,134.13,134.11,3.78525657]
[1725314490382,0.05182897,134.13,134.12,2.28764763]
[1725314490569,0.05182897,134.13,134.11,3.78525657]
[1725314491683,0.05182897,134.13,134.12,2.28764763]
[1725314491986,11.51182897,134.13,134.12,2.28764763]
[1725314492882,0.05182897,134.13,134.12,2.28764763]
[1725314493183,11.51182897,134.13,134.12,2.28764763]
[1725314494592,15.1748927,134.13,134.11,0.05705657]
[1725314494883,15.1748927,134.13,134.04,1.3687]
[1725314494884,11.46,134.12,134.04,1.3687]
[1725314495085,11.46,134.09,134.06,3.7297]
[1725314495280,11.46,134.09,134.07,2.28952576]
[1725314495679,11.46,134.09,134.04,1.3687]
[1725314495878,0.05372729,134.08,134.05,2.34172013]
[1725314496086,0.05372729,134.08,134.06,2.28988948]
[1725314496280,0.05372729,134.08,134.07,6.01938948]
[1725314497581,0.05372729,134.08,134.07,6.01922798]
[1725314504691,0.05372729,134.08,134.07,3.7295]
[1725314504998,0.05372729,134.08,134.07,6.01878909]
[1725314507695,1.4544,134.19,134.07,2.28928909]
[1725314507905,2.787,134.18,134.1,28.63]
[1725314508192,2.787,134.18,134.1,32.34132483]
[1725314508399,2.787,134.18,134.11,30.91733022]
[1725314508598,1.3708,134.18,134.11,30.91733022]
[1725314508803,0.04727811,134.16,134.13,0.05278369]
[1725314508991,0.04727811,134.16,134.14,2.28733022]
[1725314509187,0.04727811,134.16,134.15,2.28733022]
[1725314509590,0.04727811,134.16,134.15,6.01463022]
[1725314509793,0.04727811,134.16,134.15,2.28733022]
[1725314511400,0.04727811,134.16,134.15,6.01463022]
[1725314513095,0.04727811,134.16,134.15,2.28733022]
[1725314513300,0.04727811,134.16,134.13,0.05278369]
[1725314513501,0.04727811,134.16,134.14,2.28659273]
[1725314513701,0.04727811,134.16,134.13,0.05278369]
[1725314513901,0.04727811,134.16,134.14,2.28649599]
[1725314514103,0.04727811,134.16,134.13,0.05278369]
[1725314514305,0.04727811,134.16,134.14,2.28653608]
[1725314514498,0.04727811,134.16,134.15,2.28653608]
[1725314514698,0.04727811,134.16,134.15,6.01383608]
[1725314515198,0.04727811,134.16,134.15,3.7273]
[1725314515414,0.04727811,134.16,134.15,6.01369074]
[1725314518605,0.04727811,134.16,134.15,2.28639074]
[1725314518806,0.04727811,134.16,134.13,0.05278369]
[1725314519006,0.04727811,134.16,134.14,2.28643623]
[1725314519208,0.04727811,134.16,134.13,0.05278369]
[1725314519398,0.04727811,134.16,134.14,2.28651857]
[1725314519604,0.04727811,134.16,134.13,0.05278369]
[1725314519803,0.04727811,134.16,134.14,6.01383772]
[1725314519996,0.04727811,134.16,134.14,3.7273]
[1725314520601,11.49727811,134.16,134.13,3.78048369]
[1725314520808,11.49727811,134.16,134.13,0.05278369]
[1725314521604,11.45,134.14,134.13,0.05278369]
[1725314523709,11.45,134.14,134.06,1.3927]
[1725314523710,3.7279,134.13,134.08,3.729]